Workbook

Sheet Certification (M-2)
A1: Certification of Cost Analysis (M-2)
A2: Department | B2: Galion City Health Department
A3: Address: | B3: 113 Harding Way East, Galion, Ohio 44833
A4: Name(s) of Person(s) completing the Cost Analysis:
A5: Name: | B5: Stephanie Zmuda, R.S.
A6: Title | B6: Environmental Health Director
A7: Phone | B7: 419-468-1075 x 1265
A9: Name:
A10: Title:
A11: Phone:
A13: Name:
A14: Title:
A15: Phone:
A17: 2012 | B17: Fiscal Year Used
A19: =('Table A Risk (M-2)'!F9+'Table F (M-2)'!F7)/('Table A Risk (M-2)'!F48)*100 -> 22.96 | B19: % Support Cost for Risk (Not to exceed 30% per ORC)
A20: =('Table A Mobile (M-2)'!F9+'Table F (M-2)'!F12)/('Table A Mobile (M-2)'!F48)*100 -> 22.96 | B20: % Support Cost for Mobile (Not to exceed 30% per ORC)
A21: =('Table A Vending (M-2)'!F9+'Table F (M-2)'!F17)/('Table A Vending (M-2)'!F48)*100 -> 22.96 | B21: % Support Cost for Vending (Not to exceed 30% per ORC)
A22: =('Table A Temporary (M-2)'!F9+'Table F (M-2)'!F22)/('Table A Temporary (M-2)'!F48)*100 -> 22.96 | B22: % Support Cost for Temporary (Not to exceed 30% per ORC)
A24: =SUM('Table B (M-2)'!F5,'Table B (M-2)'!F45,'Table B (M-2)'!F85,'Table B (M-2)'!F125,'Table B (M-2)'!F165,'Table B (M-2)'!F205,'Table B (M-2)'!F245,'Table B (M-2)'!F285,'Table B (M-2)'!F325,'Table B (M-2)'!F365,'Table B (M-2)'!F405,'Table B (M-2)'!F445,'Table B (M-2)'!F485,'Table B (M-2)'!F525,'Table B (M-2)'!F565,'Table B (M-2)'!F605,'Table B (M-2)'!F645,'Table B (M-2)'!F685,'Table B (M-2)'!F725,'Table B (M-2)'!F765,'Table B (M-2)'!F805,'Table B (M-2)'!F845,'Table B (M-2)'!F885,'Table B (M-2)'!F925,'Table B (M-2)'!F965,'Table B (M-2)'!F1005,'Table B (M-2)'!F1045,'Table B (M-2)'!F1085,'Table B (M-2)'!F1125,'Table B (M-2)'!F1165)/SUM('Table H (M-2)'!F6+'Table H (M-2)'!F7+'Table H (M-2)'!F8+'Table H (M-2)'!F9+'Table H (M-2)'!F11+'Table H (M-2)'!F12+'Table H (M-2)'!F13+'Table H (M-2)'!F14+'Table H (M-2)'!F16+'Table H (M-2)'!F17+'Table H (M-2)'!F18+'Table H (M-2)'!F19+'Table H (M-2)'!F25+'Table H (M-2)'!F26+'Table H (M-2)'!F27+'Table H (M-2)'!F28) -> 7.46 | B24: Average number of sanitarian hours per Risk Classified Operation (9 maximum)
A25: =SUM('Table B (M-2)'!F6,'Table B (M-2)'!F46,'Table B (M-2)'!F86,'Table B (M-2)'!F126,'Table B (M-2)'!F166,'Table B (M-2)'!F206,'Table B (M-2)'!F246,'Table B (M-2)'!F286,'Table B (M-2)'!F326,'Table B (M-2)'!F366,'Table B (M-2)'!F406,'Table B (M-2)'!F446,'Table B (M-2)'!F486,'Table B (M-2)'!F526,'Table B (M-2)'!F566,'Table B (M-2)'!F606,'Table B (M-2)'!F646,'Table B (M-2)'!F686,'Table B (M-2)'!F726,'Table B (M-2)'!F766,'Table B (M-2)'!F806,'Table B (M-2)'!F846,'Table B (M-2)'!F886,'Table B (M-2)'!F926,'Table B (M-2)'!F966,'Table B (M-2)'!F1006,'Table B (M-2)'!F1046,'Table B (M-2)'!F1086,'Table B (M-2)'!F1126,'Table B (M-2)'!F1166)/'Table H (M-2)'!F78 -> 1.05 | B25: Average number of sanitarian hours per Mobile Classified Operation
A26: =SUM('Table B (M-2)'!F7,'Table B (M-2)'!F47,'Table B (M-2)'!F87,'Table B (M-2)'!F127,'Table B (M-2)'!F167,'Table B (M-2)'!F207,'Table B (M-2)'!F247,'Table B (M-2)'!F287,'Table B (M-2)'!F327,'Table B (M-2)'!F367,'Table B (M-2)'!F407,'Table B (M-2)'!F447,'Table B (M-2)'!F487,'Table B (M-2)'!F527,'Table B (M-2)'!F567,'Table B (M-2)'!F607,'Table B (M-2)'!F647,'Table B (M-2)'!F687,'Table B (M-2)'!F727,'Table B (M-2)'!F767,'Table B (M-2)'!F807,'Table B (M-2)'!F847,'Table B (M-2)'!F887,'Table B (M-2)'!F927,'Table B (M-2)'!F967,'Table B (M-2)'!F1007,'Table B (M-2)'!F1047,'Table B (M-2)'!F1087,'Table B (M-2)'!F1127,'Table B (M-2)'!F1167)/'Table H (M-2)'!F82 -> 0.58 | B26: Average number of sanitarian hours per Vending Classified Operation
A27: =SUM('Table B (M-2)'!F8,'Table B (M-2)'!F48,'Table B (M-2)'!F88,'Table B (M-2)'!F128,'Table B (M-2)'!F168,'Table B (M-2)'!F208,'Table B (M-2)'!F248,'Table B (M-2)'!F288,'Table B (M-2)'!F328,'Table B (M-2)'!F368,'Table B (M-2)'!F408,'Table B (M-2)'!F448,'Table B (M-2)'!F488,'Table B (M-2)'!F528,'Table B (M-2)'!F568,'Table B (M-2)'!F608,'Table B (M-2)'!F648,'Table B (M-2)'!F688,'Table B (M-2)'!F728,'Table B (M-2)'!F768,'Table B (M-2)'!F808,'Table B (M-2)'!F848,'Table B (M-2)'!F888,'Table B (M-2)'!F928,'Table B (M-2)'!F968,'Table B (M-2)'!F1008,'Table B (M-2)'!F1048,'Table B (M-2)'!F1088,'Table B (M-2)'!F1128,'Table B (M-2)'!F1168)/'Table H (M-2)'!F90 ->  | B27: Average number of sanitarian hours per Temporary Classified Operation per day
A28: =SUM('Table B (M-2)'!F8,'Table B (M-2)'!F48,'Table B (M-2)'!F88,'Table B (M-2)'!F128,'Table B (M-2)'!F168,'Table B (M-2)'!F208,'Table B (M-2)'!F248,'Table B (M-2)'!F288,'Table B (M-2)'!F328,'Table B (M-2)'!F368,'Table B (M-2)'!F408,'Table B (M-2)'!F448,'Table B (M-2)'!F488,'Table B (M-2)'!F528,'Table B (M-2)'!F568,'Table B (M-2)'!F608,'Table B (M-2)'!F648,'Table B (M-2)'!F688,'Table B (M-2)'!F728,'Table B (M-2)'!F768,'Table B (M-2)'!F808,'Table B (M-2)'!F848,'Table B (M-2)'!F888,'Table B (M-2)'!F928,'Table B (M-2)'!F968,'Table B (M-2)'!F1008,'Table B (M-2)'!F1048,'Table B (M-2)'!F1088,'Table B (M-2)'!F1128,'Table B (M-2)'!F1168)/'Table H (M-2)'!F98 -> 3 | B28: Average number of sanitarian hours per Temporary Classified Operation per event
A30: Signature certifying review and acceptance:
A33: Health Commissioner

Sheet Table A Risk (M-2)
A1: ='Certification (M-2)'!$A$17 -> 2012 | C1: COST ANALYSIS TOTALS TABLE (A) RISK (M-2)
A3: Department | C3: ='Certification (M-2)'!$B$2 -> Galion City Health Department
A4: RISK PROGRAM COMPONENT
A5: Support Costs:
B6: Method 2: Indirect Cost Rate
C7: a. Go to Sanitarian Cost Table B (M-2) and sum all lines 13 and enter this total. | F7: ='Table B (M-2)'!F1204 -> 24847.07
C8: b. Multiply amount on line (a) by 30% and enter amount on line 1 below.
B9: 1 | C9: Enter amount. | F9: =F7*0.3 -> 7454.12
A10: Sanitarian Costs:
B11: 2 | C11: Enter the amount from line 11 of each Sanitarian Cost Table B (M-2) on the appropriate line below.
C12: a. Sanitarian #1 | D12: ='Table B (M-2)'!$C$4 -> Stephanie Zmuda, R.S. | F12: ='Table B (M-2)'!F34 -> 25014.54
C13: b. Sanitarian #2 | D13: ='Table B (M-2)'!$C$44 -> 0 | F13: ='Table B (M-2)'!F74 -> 0
C14: c. Sanitarian #3 | D14: ='Table B (M-2)'!$C$84 -> 0 | F14: ='Table B (M-2)'!F114 -> 0
C15: d. Sanitarian #4 | D15: ='Table B (M-2)'!$C$124 -> 0 | F15: ='Table B (M-2)'!F154 -> 0
C16: e. Sanitarian #5 | D16: ='Table B (M-2)'!$C$164 -> 0 | F16: ='Table B (M-2)'!F194 -> 0
C17: f. Sanitarian #6 | D17: ='Table B (M-2)'!$C$204 -> 0 | F17: ='Table B (M-2)'!F234 -> 0
C18: g. Sanitarian #7 | D18: ='Table B (M-2)'!$C$244 -> 0 | F18: ='Table B (M-2)'!F274 -> 0
C19: h. Sanitarian #8 | D19: ='Table B (M-2)'!$C$284 -> 0 | F19: ='Table B (M-2)'!F314 -> 0
C20: i. Sanitarian #9 | D20: ='Table B (M-2)'!$C$324 -> 0 | F20: ='Table B (M-2)'!F354 -> 0
C21: j. Sanitarian #10 | D21: ='Table B (M-2)'!$C$364 -> 0 | F21: ='Table B (M-2)'!F394 -> 0
C22: k. Sanitarian #11 | D22: ='Table B (M-2)'!$C$404 -> 0 | F22: ='Table B (M-2)'!F434 -> 0
C23: l. Sanitarian #12 | D23: ='Table B (M-2)'!$C$444 -> 0 | F23: ='Table B (M-2)'!F474 -> 0
C24: m. Sanitarian #13 | D24: ='Table B (M-2)'!$C$484 -> 0 | F24: ='Table B (M-2)'!F514 -> 0
C25: n. Sanitarian #14 | D25: ='Table B (M-2)'!$C$524 -> 0 | F25: ='Table B (M-2)'!F554 -> 0
C26: o. Sanitarian #15 | D26: ='Table B (M-2)'!$C$564 -> 0 | F26: ='Table B (M-2)'!F594 -> 0
C27: p. Sanitarian #16 | D27: ='Table B (M-2)'!$C$604 -> 0 | F27: ='Table B (M-2)'!F634 -> 0
C28: q. Sanitarian #17 | D28: ='Table B (M-2)'!$C$644 -> 0 | F28: ='Table B (M-2)'!F674 -> 0
C29: r. Sanitarian #18 | D29: ='Table B (M-2)'!$C$684 -> 0 | F29: ='Table B (M-2)'!F714 -> 0
C30: s. Sanitarian #19 | D30: ='Table B (M-2)'!$C$724 -> 0 | F30: ='Table B (M-2)'!F754 -> 0
C31: t. Sanitarian #20 | D31: ='Table B (M-2)'!$C$764 -> 0 | F31: ='Table B (M-2)'!F794 -> 0
C32: u. Sanitarian #21 | D32: ='Table B (M-2)'!$C$804 -> 0 | F32: ='Table B (M-2)'!F834 -> 0
C33: v. Sanitarian #22 | D33: ='Table B (M-2)'!$C$844 -> 0 | F33: ='Table B (M-2)'!F874 -> 0
C34: w. Sanitarian #23 | D34: ='Table B (M-2)'!$C$884 -> 0 | F34: ='Table B (M-2)'!F914 -> 0
C35: x. Sanitarian #24 | D35: ='Table B (M-2)'!$C$924 -> 0 | F35: ='Table B (M-2)'!F954 -> 0
C36: y. Sanitarian #25 | D36: ='Table B (M-2)'!$C$964 -> 0 | F36: ='Table B (M-2)'!F994 -> 0
C37: z. Sanitarian #26 | D37: ='Table B (M-2)'!$C$1004 -> 0 | F37: ='Table B (M-2)'!F1034 -> 0
C38: aa. Sanitarian #27 | D38: ='Table B (M-2)'!$C$1044 -> 0 | F38: ='Table B (M-2)'!F1074 -> 0
C39: bb. Sanitarian #28 | D39: ='Table B (M-2)'!$C$1084 -> 0 | F39: ='Table B (M-2)'!F1114 -> 0
C40: cc. Sanitarian #29 | D40: ='Table B (M-2)'!$C$1124 -> 0 | F40: ='Table B (M-2)'!F1154 -> 0
C41: dd. Sanitarian #30 | D41: ='Table B (M-2)'!$C$1164 -> 0 | F41: ='Table B (M-2)'!F1194 -> 0
B42: 3 | C42: Sum lines 2a through 2dd and enter total. | F42: =SUM(F12:F41) -> 25014.54
A43: Laboratory costs:
B44: 4 | C44: Sample costs
A45: Anticipated costs:
B46: 5 | C46: From Anticipated Costs Table F (M-2) enter the amount from line 1d. | F46: ='Table F (M-2)'!F8 -> 687.84
A47: Total Program Component Costs:
B48: 6 | C48: Sum lines 1, 3, 4, 5 and enter amount. This amount represents the total cost of the risk component. | F48: =SUM(F9,F42,F44,F46) -> 33156.5
B49: 7 | C49: Enter the amount from line 6 of the anticipated worksheet. This is the amount of anticipated cost that was not incurred. | F49: =ABS('Anticipate Worksheet (M-2)'!$A$8) -> 916.99
B50: 8 | C50: Subtract line 7 from line 6. This is the corrected total program cost for the Risk Component. | F50: =F48-F49 -> 32239.51

Sheet Table A Mobile (M-2)
A1: ='Certification (M-2)'!$A$17 -> 2012 | C1: COST ANALYSIS TOTALS TABLE (A) MOBILE (M-2)
A3: Department | C3: ='Certification (M-2)'!$B$2 -> Galion City Health Department
A4: MOBILE PROGRAM COMPONENT
A5: Support Costs:
B6: Method 2: Indirect Cost Rate
C7: a. Go to Sanitarian Cost Table B (M-2) and sum all lines 13a and enter this total. | F7: ='Table B (M-2)'!F1205 -> 925.98
C8: b. Multiply amount on line (a) by 30% and enter amount on line 1 below.
B9: 1. | C9: Enter amount. | F9: =F7*0.3 -> 277.79
A10: Sanitarian Costs:
B11: 2. | C11: Enter the amount from line 11a of each Sanitarian Cost Table B (M-2) on the appropriate line below.
C12: a. Sanitarian #1 | D12: ='Table B (M-2)'!$C$4 -> Stephanie Zmuda, R.S. | F12: ='Table B (M-2)'!F35 -> 932.22
C13: b. Sanitarian #2 | D13: ='Table B (M-2)'!$C$44 -> 0 | F13: ='Table B (M-2)'!F75 -> 0
C14: c. Sanitarian #3 | D14: ='Table B (M-2)'!$C$84 -> 0 | F14: ='Table B (M-2)'!F115 -> 0
C15: d. Sanitarian #4 | D15: ='Table B (M-2)'!$C$124 -> 0 | F15: ='Table B (M-2)'!F155 -> 0
C16: e. Sanitarian #5 | D16: ='Table B (M-2)'!$C$164 -> 0 | F16: ='Table B (M-2)'!F195 -> 0
C17: f. Sanitarian #6 | D17: ='Table B (M-2)'!$C$204 -> 0 | F17: ='Table B (M-2)'!F235 -> 0
C18: g. Sanitarian #7 | D18: ='Table B (M-2)'!$C$244 -> 0 | F18: ='Table B (M-2)'!F275 -> 0
C19: h. Sanitarian #8 | D19: ='Table B (M-2)'!$C$284 -> 0 | F19: ='Table B (M-2)'!F315 -> 0
C20: i. Sanitarian #9 | D20: ='Table B (M-2)'!$C$324 -> 0 | F20: ='Table B (M-2)'!F355 -> 0
C21: j. Sanitarian #10 | D21: ='Table B (M-2)'!$C$364 -> 0 | F21: ='Table B (M-2)'!F395 -> 0
C22: k. Sanitarian #11 | D22: ='Table B (M-2)'!$C$404 -> 0 | F22: ='Table B (M-2)'!F435 -> 0
C23: l. Sanitarian #12 | D23: ='Table B (M-2)'!$C$444 -> 0 | F23: ='Table B (M-2)'!F475 -> 0
C24: m. Sanitarian #13 | D24: ='Table B (M-2)'!$C$484 -> 0 | F24: ='Table B (M-2)'!F515 -> 0
C25: n. Sanitarian #14 | D25: ='Table B (M-2)'!$C$524 -> 0 | F25: ='Table B (M-2)'!F555 -> 0
C26: o. Sanitarian #15 | D26: ='Table B (M-2)'!$C$564 -> 0 | F26: ='Table B (M-2)'!F595 -> 0
C27: p. Sanitarian #16 | D27: ='Table B (M-2)'!$C$604 -> 0 | F27: ='Table B (M-2)'!F635 -> 0
C28: q. Sanitarian #17 | D28: ='Table B (M-2)'!$C$644 -> 0 | F28: ='Table B (M-2)'!F675 -> 0
C29: r. Sanitarian #18 | D29: ='Table B (M-2)'!$C$684 -> 0 | F29: ='Table B (M-2)'!F715 -> 0
C30: s. Sanitarian #19 | D30: ='Table B (M-2)'!$C$724 -> 0 | F30: ='Table B (M-2)'!F755 -> 0
C31: t. Sanitarian #20 | D31: ='Table B (M-2)'!$C$764 -> 0 | F31: ='Table B (M-2)'!F795 -> 0
C32: u. Sanitarian #21 | D32: ='Table B (M-2)'!$C$804 -> 0 | F32: ='Table B (M-2)'!F835 -> 0
C33: v. Sanitarian #22 | D33: ='Table B (M-2)'!$C$844 -> 0 | F33: ='Table B (M-2)'!F875 -> 0
C34: w. Sanitarian #23 | D34: ='Table B (M-2)'!$C$884 -> 0 | F34: ='Table B (M-2)'!F915 -> 0
C35: x. Sanitarian #24 | D35: ='Table B (M-2)'!$C$924 -> 0 | F35: ='Table B (M-2)'!F955 -> 0
C36: y. Sanitarian #25 | D36: ='Table B (M-2)'!$C$964 -> 0 | F36: ='Table B (M-2)'!F995 -> 0
C37: z. Sanitarian #26 | D37: ='Table B (M-2)'!$C$1004 -> 0 | F37: ='Table B (M-2)'!F1035 -> 0
C38: aa. Sanitarian #27 | D38: ='Table B (M-2)'!$C$1044 -> 0 | F38: ='Table B (M-2)'!F1075 -> 0
C39: bb. Sanitarian #28 | D39: ='Table B (M-2)'!$C$1084 -> 0 | F39: ='Table B (M-2)'!F1115 -> 0
C40: cc. Sanitarian #29 | D40: ='Table B (M-2)'!$C$1124 -> 0 | F40: ='Table B (M-2)'!F1155 -> 0
C41: dd. Sanitarian #30 | D41: ='Table B (M-2)'!$C$1164 -> 0 | F41: ='Table B (M-2)'!F1195 -> 0
B42: 3. | C42: Sum lines 2a through 2dd and enter total. | F42: =SUM(F12:F41) -> 932.22
A43: Laboratory costs:
B44: 4. | C44: Sample costs
A45: Anticipated costs:
B46: 5. | C46: From Anticipated Costs Table F (M-2) enter the amount from line 2d. | F46: ='Table F (M-2)'!F13 -> 25.64
A47: Total Program Component Costs:
B48: 6. | C48: Sum lines 1, 3, 4, 5 and enter amount. This amount represents the total cost of the mobile component. | F48: =SUM(F9,F42,F44,F46) -> 1235.65
B49: 7. | C49: Enter the amount from line 12 of the anticipated worksheet. This is the amount of anticipated cost that was not incurred. | F49: =ABS('Anticipate Worksheet (M-2)'!$A$14) -> 30.66
B50: 8. | C50: Subtract line 7 from line 6. This is the corrected total program cost for the Mobile Component. | F50: =F48-F49 -> 1204.99

Sheet Table A Vending (M-2)
A1: ='Certification (M-2)'!$A$17 -> 2012 | C1: COST ANALYSIS TOTALS TABLE (A) VENDING (M-2)
A3: Department | C3: ='Certification (M-2)'!$B$2 -> Galion City Health Department
A4: VENDING PROGRAM COMPONENT
A5: Support Costs:
B6: Method 2: Indirect Cost Rate
C7: a. Go to Sanitarian Cost Table B (M-2) and sum all lines 13b and enter this total. | F7: ='Table B (M-2)'!F1206 -> 308.66
C8: b. Multiply amount on line (a) by 30% and enter amount on line 1 below.
B9: 1. | C9: Enter amount. | F9: =F7*0.3 -> 92.6
A10: Sanitarian Costs:
B11: 2. | C11: Enter the amount from line 11b of each Sanitarian Cost Table B (M-2) on the appropriate line below.
C12: a. Sanitarian #1 | D12: ='Table B (M-2)'!$C$4 -> Stephanie Zmuda, R.S. | F12: ='Table B (M-2)'!F36 -> 310.74
C13: b. Sanitarian #2 | D13: ='Table B (M-2)'!$C$44 -> 0 | F13: ='Table B (M-2)'!F76 -> 0
C14: c. Sanitarian #3 | D14: ='Table B (M-2)'!$C$84 -> 0 | F14: ='Table B (M-2)'!F116 -> 0
C15: d. Sanitarian #4 | D15: ='Table B (M-2)'!$C$124 -> 0 | F15: ='Table B (M-2)'!F156 -> 0
C16: e. Sanitarian #5 | D16: ='Table B (M-2)'!$C$164 -> 0 | F16: ='Table B (M-2)'!F196 -> 0
C17: f. Sanitarian #6 | D17: ='Table B (M-2)'!$C$204 -> 0 | F17: ='Table B (M-2)'!F236 -> 0
C18: g. Sanitarian #7 | D18: ='Table B (M-2)'!$C$244 -> 0 | F18: ='Table B (M-2)'!F276 -> 0
C19: h. Sanitarian #8 | D19: ='Table B (M-2)'!$C$284 -> 0 | F19: ='Table B (M-2)'!F316 -> 0
C20: i. Sanitarian #9 | D20: ='Table B (M-2)'!$C$324 -> 0 | F20: ='Table B (M-2)'!F356 -> 0
C21: j. Sanitarian #10 | D21: ='Table B (M-2)'!$C$364 -> 0 | F21: ='Table B (M-2)'!F396 -> 0
C22: k. Sanitarian #11 | D22: ='Table B (M-2)'!$C$404 -> 0 | F22: ='Table B (M-2)'!F436 -> 0
C23: l. Sanitarian #12 | D23: ='Table B (M-2)'!$C$444 -> 0 | F23: ='Table B (M-2)'!F476 -> 0
C24: m. Sanitarian #13 | D24: ='Table B (M-2)'!$C$484 -> 0 | F24: ='Table B (M-2)'!F516 -> 0
C25: n. Sanitarian #14 | D25: ='Table B (M-2)'!$C$524 -> 0 | F25: ='Table B (M-2)'!F556 -> 0
C26: o. Sanitarian #15 | D26: ='Table B (M-2)'!$C$564 -> 0 | F26: ='Table B (M-2)'!F596 -> 0
C27: p. Sanitarian #16 | D27: ='Table B (M-2)'!$C$604 -> 0 | F27: ='Table B (M-2)'!F636 -> 0
C28: q. Sanitarian #17 | D28: ='Table B (M-2)'!$C$644 -> 0 | F28: ='Table B (M-2)'!F676 -> 0
C29: r. Sanitarian #18 | D29: ='Table B (M-2)'!$C$684 -> 0 | F29: ='Table B (M-2)'!F716 -> 0
C30: s. Sanitarian #19 | D30: ='Table B (M-2)'!$C$724 -> 0 | F30: ='Table B (M-2)'!F756 -> 0
C31: t. Sanitarian #20 | D31: ='Table B (M-2)'!$C$764 -> 0 | F31: ='Table B (M-2)'!F796 -> 0
C32: u. Sanitarian #21 | D32: ='Table B (M-2)'!$C$804 -> 0 | F32: ='Table B (M-2)'!F836 -> 0
C33: v. Sanitarian #22 | D33: ='Table B (M-2)'!$C$844 -> 0 | F33: ='Table B (M-2)'!F876 -> 0
C34: w. Sanitarian #23 | D34: ='Table B (M-2)'!$C$884 -> 0 | F34: ='Table B (M-2)'!F916 -> 0
C35: x. Sanitarian #24 | D35: ='Table B (M-2)'!$C$924 -> 0 | F35: ='Table B (M-2)'!F956 -> 0
C36: y. Sanitarian #25 | D36: ='Table B (M-2)'!$C$964 -> 0 | F36: ='Table B (M-2)'!F996 -> 0
C37: z. Sanitarian #26 | D37: ='Table B (M-2)'!$C$1004 -> 0 | F37: ='Table B (M-2)'!F1036 -> 0
C38: aa. Sanitarian #27 | D38: ='Table B (M-2)'!$C$1044 -> 0 | F38: ='Table B (M-2)'!F1076 -> 0
C39: bb. Sanitarian #28 | D39: ='Table B (M-2)'!$C$1084 -> 0 | F39: ='Table B (M-2)'!F1116 -> 0
C40: cc. Sanitarian #29 | D40: ='Table B (M-2)'!$C$1124 -> 0 | F40: ='Table B (M-2)'!F1156 -> 0
C41: dd. Sanitarian #30 | D41: ='Table B (M-2)'!$C$1164 -> 0 | F41: ='Table B (M-2)'!F1196 -> 0
B42: 3. | C42: Sum lines 2a through 2dd and enter total. | F42: =SUM(F12:F41) -> 310.74
A43: Laboratory costs:
B44: 4. | C44: Sample costs
A45: Anticipated costs:
B46: 5. | C46: From Anticipated Costs Table F (M-2) enter the amount from line 3d. | F46: ='Table F (M-2)'!F18 -> 8.54
A47: Total Program Component Costs:
B48: 6. | C48: Sum lines 1, 3, 4, 5 and enter amount. This amount represents the total cost of the vending component. | F48: =SUM(F9+F42+F44+F46) -> 411.88
B49: 7. | C49: Enter the amount from line 18 of the anticipated worksheet. This is the amount of anticipated cost that was not incurred. | F49: =ABS('Anticipate Worksheet (M-2)'!$A$20) -> 11.15
B50: 8. | C50: Subtract line 7 from line 6. This is the corrected total program cost for the Mobile Component. | F50: =F48+F49 -> 423.03

Sheet Table A Temporary (M-2)
A1: ='Certification (M-2)'!$A$17 -> 2012 | C1: COST ANALYSIS TOTALS TABLE (A) TEMPORARY (M-2)
A3: Department | C3: ='Certification (M-2)'!$B$2 -> Galion City Health Department
A4: TEMPORARY PROGRAM COMPONENT
A5: Support Costs:
B6: Method 2: Indirect Cost Rate
C7: a. Go to Sanitarian Cost Table B (M-2) and sum all lines 13c and enter this total. | F7: ='Table B (M-2)'!F1207 -> 154.33
C8: b. Multiply amount on line (a) by 30% and enter amount on line 1 below.
B9: 1. | C9: Enter amount. | F9: =F7*0.3 -> 46.3
A10: Sanitarian Costs:
B11: 2. | C11: Enter the amount from line 11c of each Sanitarian Cost form Table B (M-2) on the appropriate line below.
C12: a. Sanitarian #1 | D12: ='Table B (M-2)'!$C$4 -> Stephanie Zmuda, R.S. | F12: ='Table B (M-2)'!F37 -> 155.37
C13: b. Sanitarian #2 | D13: ='Table B (M-2)'!$C$44 -> 0 | F13: ='Table B (M-2)'!F77 -> 0
C14: c. Sanitarian #3 | D14: ='Table B (M-2)'!$C$84 -> 0 | F14: ='Table B (M-2)'!F117 -> 0
C15: d. Sanitarian #4 | D15: ='Table B (M-2)'!$C$124 -> 0 | F15: ='Table B (M-2)'!F157 -> 0
C16: e. Sanitarian #5 | D16: ='Table B (M-2)'!$C$164 -> 0 | F16: ='Table B (M-2)'!F197 -> 0
C17: f. Sanitarian #6 | D17: ='Table B (M-2)'!$C$204 -> 0 | F17: ='Table B (M-2)'!F237 -> 0
C18: g. Sanitarian #7 | D18: ='Table B (M-2)'!$C$244 -> 0 | F18: ='Table B (M-2)'!F277 -> 0
C19: h. Sanitarian #8 | D19: ='Table B (M-2)'!$C$284 -> 0 | F19: ='Table B (M-2)'!F317 -> 0
C20: i. Sanitarian #9 | D20: ='Table B (M-2)'!$C$324 -> 0 | F20: ='Table B (M-2)'!F357 -> 0
C21: j. Sanitarian #10 | D21: ='Table B (M-2)'!$C$364 -> 0 | F21: ='Table B (M-2)'!F397 -> 0
C22: k. Sanitarian #11 | D22: ='Table B (M-2)'!$C$404 -> 0 | F22: ='Table B (M-2)'!F437 -> 0
C23: l. Sanitarian #12 | D23: ='Table B (M-2)'!$C$444 -> 0 | F23: ='Table B (M-2)'!F477 -> 0
C24: m. Sanitarian #13 | D24: ='Table B (M-2)'!$C$484 -> 0 | F24: ='Table B (M-2)'!F517 -> 0
C25: n. Sanitarian #14 | D25: ='Table B (M-2)'!$C$524 -> 0 | F25: ='Table B (M-2)'!F557 -> 0
C26: o. Sanitarian #15 | D26: ='Table B (M-2)'!$C$564 -> 0 | F26: ='Table B (M-2)'!F597 -> 0
C27: p. Sanitarian #16 | D27: ='Table B (M-2)'!$C$604 -> 0 | F27: ='Table B (M-2)'!F637 -> 0
C28: q. Sanitarian #17 | D28: ='Table B (M-2)'!$C$644 -> 0 | F28: ='Table B (M-2)'!F677 -> 0
C29: r. Sanitarian #18 | D29: ='Table B (M-2)'!$C$684 -> 0 | F29: ='Table B (M-2)'!F717 -> 0
C30: s. Sanitarian #19 | D30: ='Table B (M-2)'!$C$724 -> 0 | F30: ='Table B (M-2)'!F757 -> 0
C31: t. Sanitarian #20 | D31: ='Table B (M-2)'!$C$764 -> 0 | F31: ='Table B (M-2)'!F797 -> 0
C32: u. Sanitarian #21 | D32: ='Table B (M-2)'!$C$804 -> 0 | F32: ='Table B (M-2)'!F837 -> 0
C33: v. Sanitarian #22 | D33: ='Table B (M-2)'!$C$844 -> 0 | F33: ='Table B (M-2)'!F877 -> 0
C34: w. Sanitarian #23 | D34: ='Table B (M-2)'!$C$884 -> 0 | F34: ='Table B (M-2)'!F917 -> 0
C35: x. Sanitarian #24 | D35: ='Table B (M-2)'!$C$924 -> 0 | F35: ='Table B (M-2)'!F957 -> 0
C36: y. Sanitarian #25 | D36: ='Table B (M-2)'!$C$964 -> 0 | F36: ='Table B (M-2)'!F997 -> 0
C37: z. Sanitarian #26 | D37: ='Table B (M-2)'!$C$1004 -> 0 | F37: ='Table B (M-2)'!F1037 -> 0
C38: aa. Sanitarian #27 | D38: ='Table B (M-2)'!$C$1044 -> 0 | F38: ='Table B (M-2)'!F1077 -> 0
C39: bb. Sanitarian #28 | D39: ='Table B (M-2)'!$C$1084 -> 0 | F39: ='Table B (M-2)'!F1117 -> 0
C40: cc. Sanitarian #29 | D40: ='Table B (M-2)'!$C$1124 -> 0 | F40: ='Table B (M-2)'!F1157 -> 0
C41: dd. Sanitarian #30 | D41: ='Table B (M-2)'!$C$1164 -> 0 | F41: ='Table B (M-2)'!F1197 -> 0
B42: 3. | C42: Sum lines 2a through 2dd and enter total. | F42: =SUM(F12:F41) -> 155.37
A43: Laboratory costs:
B44: 4. | C44: Sample costs
A45: Anticipated costs:
B46: 5. | C46: From Anticipated Costs Table F (M-2) enter the amount from line 4d. | F46: ='Table F (M-2)'!F23 -> 4.28
A47: Total Program Component Costs:
B48: 6. | C48: Sum lines 1, 3, 4, 5 and enter amount. This amount represents the total cost of the temporary program component. | F48: =SUM(F9+F42+F44+F46) -> 205.95
B49: 7. | C49: Enter the amount from line 24 of anticipated worksheet. This is the amount of anticipated cost that was not incurred. | F49: =ABS('Anticipate Worksheet (M-2)'!$A$26) -> 0
B50: 8. | C50: Subtract line 7 from line 6. This is the corrected total program cost for the Temporary Component. | F50: =F48-F49 -> 205.95

Sheet Table B (M-2)
A1: ='Certification (M-2)'!$A$17 -> 2012 | C1: SANITARIAN COST TABLE B (M-2)
A3: Department | C3: ='Certification (M-2)'!$B$2 -> Galion City Health Department
A4: Sanitarian | C4: Stephanie Zmuda, R.S.
B5: 1 | C5: Total hours worked in the risk component. | F5: 589
B6: 1a | C6: Total hours worked in the mobile component. | F6: 22
B7: 1b | C7: Total hours worked in the vending component | F7: 7
B8: 1c | C8: Total hours worked in the temporary component | F8: 3
B9: 2 | C9: Total hours worked in all programs by sanitarian. | F9: 1829 | G9: =F5+F6+F7+F8 -> 621
B10: 3 | C10: Divide line 1 by line 2 and enter result. | F10: =IF(F5=0,0,F5/F9) -> 0.322
B11: 3a | C11: Divide line 1a by line 2 and enter result. | F11: =IF(F6=0,0,F6/F9) -> 0.012
B12: 3b | C12: Divide line 1b by line 2 and enter result. | F12: =IF(F7=0,0,F7/F9) -> 0.004
B13: 3c | C13: Divide line 1c by line 2 and enter result. | F13: =IF(F8=0,0,F8/F9) -> 0.002
B14: 4 | C14: Total annual wages or salary paid. | F14: 50148.8
B15: 5 | C15: Fringe benefits paid:
C16: a. Health Insurance | F16: 18782.4
C17: b. PERS Pickup | F17: 4264
C18: c. Workers Compensation | F18: 1476.8
C19: d. Life Insurance | F19: 124.8
C20: e. Medicare Reimbursement | F20: 728
C21: f. Dental Insurance | F21: 0
C22: g. Vision Insurance | F22: 0
C23: h. Liability Insurance
C24: i. Other: Incentive pay (clothing allowance, longevity incentive, sick leave incentive) | F24: 1640
C25: j. Other:
B26: 6 | C26: Sum lines 5a through line 5j and enter total. | F26: =SUM(F16:F25) -> 27016
B27: 7 | C27: Travel Costs:
C28: a. Mileage paid to sanitarian | F28: 0
C29: b. Agency vehicle expense (lease, owned, rental, etc.) | F29: 520.1
C30: c. Miscellaneous travel expenses
B31: 8 | C31: Sum lines 7a through 7c and enter total. | F31: =SUM(F28:F30) -> 520.1
B32: 9 | C32: Inspection Equipment
B33: 10 | C33: Sum lines 4, 6, 8 and 9 and enter total. | F33: =SUM(F14+F26+F31+F32) -> 77684.9
B34: 11 | C34: Multiply line 10 by line 3 and enter total cost of sanitarian to the Risk component here and on the appropriate line 2 of the Cost Analysis Totals Table A Risk (M-2). | F34: =PRODUCT(F33*F10) -> 25014.54
B35: 11a | C35: Multiply line 10 by line 3a and enter total cost of sanitarian to the Mobile component here and on the appropriate line 2 of the Cost Analysis Totals Table A Mobile (M-2). | F35: =PRODUCT(F33*F11) -> 932.22
B36: 11b | C36: Multiply line 10 by line 3b and enter total cost of sanitarian to the Vending component here and on the appropriate line 2 of the Cost Analysis Totals Table A Vending (M-2). | F36: =PRODUCT(F33*F12) -> 310.74
B37: 11c | C37: Multiply line 10 by line 3c and enter total cost of sanitarian to the Temporary component here and on the appropriate line 2 of the Cost Analysis Totals Table A Temporary (M-2). | F37: =PRODUCT(F33*F13) -> 155.37
B38: WORKSHEET FOR DETERMINING SUPPORT COST
B39: 12 | C39: Sum lines 4 and 6 | F39: =SUM(F14,F26) -> 77164.8
B40: 13 | C40: Multiply line 12 by the percentage of time worked in the Risk component (line 3). | F40: =F39*F10 -> 24847.07
B41: 13a | C41: Multiply line 12 by the percentage of time worked in the Mobile component (line 3a). | F41: =F39*F11 -> 925.98
B42: 13b | C42: Multiply line 12 by the percentage of time worked in the Vending component (line 3b). | F42: =F39*F12 -> 308.66
B43: 13c | C43: Multiply line 12 by the percentage of time worked in the Temporary component (line 3c). | F43: =F39*F13 -> 154.33
A44: Sanitarian
B45: 1 | C45: Total hours worked in the risk component. | F45: 0
B46: 1a | C46: Total hours worked in the mobile component. | F46: 0
B47: 1b | C47: Total hours worked in the vending component | F47: 0
B48: 1c | C48: Total hours worked in the temporary component | F48: 0
B49: 2 | C49: Total hours worked in all programs by sanitarian. | F49: 0 | G49: =F45+F46+F47+F48 -> 0
B50: 3 | C50: Divide line 1 by line 2 and enter result. | F50: =IF(F45=0,0,F45/F49) -> 0
B51: 3a | C51: Divide line 1a by line 2 and enter result. | F51: =IF(F46=0,0,F46/F49) -> 0
B52: 3b | C52: Divide line 1b by line 2 and enter result. | F52: =IF(F47=0,0,F47/F49) -> 0
B53: 3c | C53: Divide line 1c by line 2 and enter result. | F53: =IF(F48=0,0,F48/F49) -> 0
B54: 4 | C54: Total annual wages or salary paid.
B55: 5 | C55: Fringe benefits paid:
C56: a. Health Insurance
C57: b. PERS Pickup
C58: c. Workers Compensation
C59: d. Life Insurance
C60: e. Medicare Reimbursement
C61: f. Dental Insurance
C62: g. Vision Insurance
C63: h. Liability Insurance
C64: i. Other:
C65: j. Other:
B66: 6 | C66: Sum lines 5a through line 5j and enter total. | F66: =SUM(F56:F65) -> 0
B67: 7 | C67: Travel Costs:
C68: a. Mileage paid to sanitarian
C69: b. Agency vehicle expense (lease, owned, rental, etc.)
C70: c. Miscellaneous travel expenses
B71: 8 | C71: Sum lines 7a through 7c and enter total. | F71: =SUM(F68:F70) -> 0
B72: 9 | C72: Inspection Equipment
B73: 10 | C73: Sum lines 4, 6, 8 and 9 and enter total. | F73: =SUM(F54+F66+F71+F72) -> 0
B74: 11 | C74: Multiply line 10 by line 3 and enter total cost of sanitarian to the Risk component here and on the appropriate line 2 of the Cost Analysis Totals Table A Risk (M-2). | F74: =PRODUCT(F73*F50) -> 0
B75: 11a | C75: Multiply line 10 by line 3a and enter total cost of sanitarian to the Mobile component here and on the appropriate line 2 of the Cost Analysis Totals Table A Mobile (M-2). | F75: =PRODUCT(F73*F51) -> 0
B76: 11b | C76: Multiply line 10 by line 3b and enter total cost of sanitarian to the Vending component here and on the appropriate line 2 of the Cost Analysis Totals Table A Vending (M-2). | F76: =PRODUCT(F73*F52) -> 0
B77: 11c | C77: Multiply line 10 by line 3c and enter total cost of sanitarian to the Temporary component here and on the appropriate line 2 of the Cost Analysis Totals Table A Temporary (M-2). | F77: =PRODUCT(F73*F53) -> 0
B78: WORKSHEET FOR DETERMINING SUPPORT COST
B79: 12 | C79: Sum lines 4 and 6 | F79: =SUM(F54,F66) -> 0
B80: 13 | C80: Multiply line 12 by the percentage of time worked in the Risk component (line 3). | F80: =F79*F50 -> 0
B81: 13a | C81: Multiply line 12 by the percentage of time worked in the Mobile component (line 3a). | F81: =F79*F51 -> 0
B82: 13b | C82: Multiply line 12 by the percentage of time worked in the Vending component (line 3b). | F82: =F79*F52 -> 0
B83: 13c | C83: Multiply line 12 by the percentage of time worked in the Temporary component (line 3c). | F83: =F79*F53 -> 0
A84: Sanitarian
B85: 1 | C85: Total hours worked in the risk component.
B86: 1a | C86: Total hours worked in the mobile component.
B87: 1b | C87: Total hours worked in the vending component
B88: 1c | C88: Total hours worked in the temporary component
B89: 2 | C89: Total hours worked in all programs by sanitarian. | G89: =F85+F86+F87+F88 -> 0
B90: 3 | C90: Divide line 1 by line 2 and enter result. | F90: =IF(F85=0,0,F85/F89) -> 0
B91: 3a | C91: Divide line 1a by line 2 and enter result. | F91: =IF(F86=0,0,F86/F89) -> 0
B92: 3b | C92: Divide line 1b by line 2 and enter result. | F92: =IF(F87=0,0,F87/F89) -> 0
B93: 3c | C93: Divide line 1c by line 2 and enter result. | F93: =IF(F88=0,0,F88/F89) -> 0
B94: 4 | C94: Total annual wages or salary paid.
B95: 5 | C95: Fringe benefits paid:
C96: a. Health Insurance
C97: b. PERS Pickup
C98: c. Workers Compensation
C99: d. Life Insurance
C100: e. Medicare Reimbursement
C101: f. Dental Insurance
C102: g. Vision Insurance
C103: h. Liability Insurance
C104: i. Other:
C105: j. Other:
B106: 6 | C106: Sum lines 5a through line 5j and enter total. | F106: =SUM(F96:F105) -> 0
B107: 7 | C107: Travel Costs:
C108: a. Mileage paid to sanitarian
C109: b. Agency vehicle expense (lease, owned, rental, etc.)
C110: c. Miscellaneous travel expenses
B111: 8 | C111: Sum lines 7a through 7c and enter total. | F111: =SUM(F108:F110) -> 0
B112: 9 | C112: Inspection Equipment
B113: 10 | C113: Sum lines 4, 6, 8 and 9 and enter total. | F113: =SUM(F94+F106+F111+F112) -> 0
B114: 11 | C114: Multiply line 10 by line 3 and enter total cost of sanitarian to the Risk component here and on the appropriate line 2 of the Cost Analysis Totals Table A Risk (M-2). | F114: =PRODUCT(F113*F90) -> 0
B115: 11a | C115: Multiply line 10 by line 3a and enter total cost of sanitarian to the Mobile component here and on the appropriate line 2 of the Cost Analysis Totals Table A Mobile (M-2). | F115: =PRODUCT(F113*F91) -> 0
B116: 11b | C116: Multiply line 10 by line 3b and enter total cost of sanitarian to the Vending component here and on the appropriate line 2 of the Cost Analysis Totals Table A Vending (M-2). | F116: =PRODUCT(F113*F92) -> 0
B117: 11c | C117: Multiply line 10 by line 3c and enter total cost of sanitarian to the Temporary component here and on the appropriate line 2 of the Cost Analysis Totals Table A Temporary (M-2). | F117: =PRODUCT(F113*F93) -> 0
B118: WORKSHEET FOR DETERMINING SUPPORT COST
B119: 12 | C119: Sum lines 4 and 6 | F119: =SUM(F94,F106) -> 0
B120: 13 | C120: Multiply line 12 by the percentage of time worked in the Risk component (line 3). | F120: =F119*F90 -> 0
B121: 13a | C121: Multiply line 12 by the percentage of time worked in the Mobile component (line 3a). | F121: =F119*F91 -> 0
B122: 13b | C122: Multiply line 12 by the percentage of time worked in the Vending component (line 3b). | F122: =F119*F92 -> 0
B123: 13c | C123: Multiply line 12 by the percentage of time worked in the Temporary component (line 3c). | F123: =F119*F93 -> 0
A124: Sanitarian
B125: 1 | C125: Total hours worked in the risk component.
B126: 1a | C126: Total hours worked in the mobile component.
B127: 1b | C127: Total hours worked in the vending component
B128: 1c | C128: Total hours worked in the temporary component
B129: 2 | C129: Total hours worked in all programs by sanitarian. | G129: =F125+F126+F127+F128 -> 0
B130: 3 | C130: Divide line 1 by line 2 and enter result. | F130: =IF(F125=0,0,F125/F129) -> 0
B131: 3a | C131: Divide line 1a by line 2 and enter result. | F131: =IF(F126=0,0,F126/F129) -> 0
B132: 3b | C132: Divide line 1b by line 2 and enter result. | F132: =IF(F127=0,0,F127/F129) -> 0
B133: 3c | C133: Divide line 1c by line 2 and enter result. | F133: =IF(F128=0,0,F128/F129) -> 0
B134: 4 | C134: Total annual wages or salary paid.
B135: 5 | C135: Fringe benefits paid:
C136: a. Health Insurance
C137: b. PERS Pickup
C138: c. Workers Compensation
C139: d. Life Insurance
C140: e. Medicare Reimbursement
C141: f. Dental Insurance
C142: g. Vision Insurance
C143: h. Liability Insurance
C144: i. Other:
C145: j. Other:
B146: 6 | C146: Sum lines 5a through line 5j and enter total. | F146: =SUM(F136:F145) -> 0
B147: 7 | C147: Travel Costs:
C148: a. Mileage paid to sanitarian
C149: b. Agency vehicle expense (lease, owned, rental, etc.)
C150: c. Miscellaneous travel expenses
B151: 8 | C151: Sum lines 7a through 7c and enter total. | F151: =SUM(F148:F150) -> 0
B152: 9 | C152: Inspection Equipment
B153: 10 | C153: Sum lines 4, 6, 8 and 9 and enter total. | F153: =SUM(F134+F146+F151+F152) -> 0
B154: 11 | C154: Multiply line 10 by line 3 and enter total cost of sanitarian to the Risk component here and on the appropriate line 2 of the Cost Analysis Totals Table A Risk (M-2). | F154: =PRODUCT(F153*F130) -> 0
B155: 11a | C155: Multiply line 10 by line 3a and enter total cost of sanitarian to the Mobile component here and on the appropriate line 2 of the Cost Analysis Totals Table A Mobile (M-2). | F155: =PRODUCT(F153*F131) -> 0
B156: 11b | C156: Multiply line 10 by line 3b and enter total cost of sanitarian to the Vending component here and on the appropriate line 2 of the Cost Analysis Totals Table A Vending (M-2). | F156: =PRODUCT(F153*F132) -> 0
B157: 11c | C157: Multiply line 10 by line 3c and enter total cost of sanitarian to the Temporary component here and on the appropriate line 2 of the Cost Analysis Totals Table A Temporary (M-2). | F157: =PRODUCT(F153*F133) -> 0
B158: WORKSHEET FOR DETERMINING SUPPORT COST
B159: 12 | C159: Sum lines 4 and 6 | F159: =SUM(F134,F146) -> 0
B160: 13 | C160: Multiply line 12 by the percentage of time worked in the Risk component (line 3). | F160: =F159*F130 -> 0
B161: 13a | C161: Multiply line 12 by the percentage of time worked in the Mobile component (line 3a). | F161: =F159*F131 -> 0
B162: 13b | C162: Multiply line 12 by the percentage of time worked in the Vending component (line 3b). | F162: =F159*F132 -> 0
B163: 13c | C163: Multiply line 12 by the percentage of time worked in the Temporary component (line 3c). | F163: =F159*F133 -> 0
A164: Sanitarian
B165: 1 | C165: Total hours worked in the risk component.
B166: 1a | C166: Total hours worked in the mobile component.
B167: 1b | C167: Total hours worked in the vending component
B168: 1c | C168: Total hours worked in the temporary component
B169: 2 | C169: Total hours worked in all programs by sanitarian. | G169: =F165+F166+F167+F168 -> 0
B170: 3 | C170: Divide line 1 by line 2 and enter result. | F170: =IF(F165=0,0,F165/F169) -> 0
B171: 3a | C171: Divide line 1a by line 2 and enter result. | F171: =IF(F166=0,0,F166/F169) -> 0
B172: 3b | C172: Divide line 1b by line 2 and enter result. | F172: =IF(F167=0,0,F167/F169) -> 0
B173: 3c | C173: Divide line 1c by line 2 and enter result. | F173: =IF(F168=0,0,F168/F169) -> 0
B174: 4 | C174: Total annual wages or salary paid.
B175: 5 | C175: Fringe benefits paid:
C176: a. Health Insurance
C177: b. PERS Pickup
C178: c. Workers Compensation
C179: d. Life Insurance
C180: e. Medicare Reimbursement
C181: f. Dental Insurance
C182: g. Vision Insurance
C183: h. Liability Insurance
C184: i. Other:
C185: j. Other:
B186: 6 | C186: Sum lines 5a through line 5j and enter total. | F186: =SUM(F176:F185) -> 0
B187: 7 | C187: Travel Costs:
C188: a. Mileage paid to sanitarian
C189: b. Agency vehicle expense (lease, owned, rental, etc.)
C190: c. Miscellaneous travel expenses
B191: 8 | C191: Sum lines 7a through 7c and enter total. | F191: =SUM(F188:F190) -> 0
B192: 9 | C192: Inspection Equipment
B193: 10 | C193: Sum lines 4, 6, 8 and 9 and enter total. | F193: =SUM(F174+F186+F191+F192) -> 0
B194: 11 | C194: Multiply line 10 by line 3 and enter total cost of sanitarian to the Risk component here and on the appropriate line 2 of the Cost Analysis Totals Table A Risk (M-2). | F194: =PRODUCT(F193*F170) -> 0
B195: 11a | C195: Multiply line 10 by line 3a and enter total cost of sanitarian to the Mobile component here and on the appropriate line 2 of the Cost Analysis Totals Table A Mobile (M-2). | F195: =PRODUCT(F193*F171) -> 0
B196: 11b | C196: Multiply line 10 by line 3b and enter total cost of sanitarian to the Vending component here and on the appropriate line 2 of the Cost Analysis Totals Table A Vending (M-2). | F196: =PRODUCT(F193*F172) -> 0
B197: 11c | C197: Multiply line 10 by line 3c and enter total cost of sanitarian to the Temporary component here and on the appropriate line 2 of the Cost Analysis Totals Table A Temporary (M-2). | F197: =PRODUCT(F193*F173) -> 0
B198: WORKSHEET FOR DETERMINING SUPPORT COST
B199: 12 | C199: Sum lines 4 and 6 | F199: =SUM(F174,F186) -> 0
B200: 13 | C200: Multiply line 12 by the percentage of time worked in the Risk component (line 3). | F200: =F199*F170 -> 0
B201: 13a | C201: Multiply line 12 by the percentage of time worked in the Mobile component (line 3a). | F201: =F199*F171 -> 0
... 1006 more rows

Sheet Table B-A (M-2)
A1: ='Certification (M-2)'!$A$17 -> 2012 | C1: SANITARIAN COST ANTICIPATED TABLE B-A (M-2)
A3: Department | C3: ='Certification (M-2)'!$B$2 -> Galion City Health Department
A4: Sanitarian | C4: ='Table B (M-2)'!$C$4 -> Stephanie Zmuda, R.S.
B5: 1 | C5: Total hours worked in the risk component. | F5: ='Table B (M-2)'!$F$5 -> 589
B6: 1a | C6: Total hours worked in the mobile component. | F6: ='Table B (M-2)'!$F$6 -> 22
B7: 1b | C7: Total hours worked in the vending component | F7: ='Table B (M-2)'!$F$7 -> 7
B8: 1c | C8: Total hours worked in the temporary component | F8: ='Table B (M-2)'!$F$8 -> 3
B9: 2 | C9: Total hours worked in all programs by sanitarian. | F9: ='Table B (M-2)'!$F$9 -> 1829
B10: 3 | C10: Divide line 1 by line 2 and enter result. | F10: =IF(F5=0,0,F5/F9) -> 0.322
B11: 3a | C11: Divide line 1a by line 2 and enter result. | F11: =IF(F6=0,0,F6/F9) -> 0.012
B12: 3b | C12: Divide line 1b by line 2 and enter result. | F12: =IF(F7=0,0,F7/F9) -> 0.004
B13: 3c | C13: Divide line 1c by line 2 and enter result. | F13: =IF(F8=0,0,F8/F9) -> 0.002
B14: 4 | C14: Total increase in annual wages or salary paid. | F14: 1248
B15: 5 | C15: Amount of increase for each fringe benefit:
C16: a. Health Insurance
C17: b. PERS Pickup | F17: 104
C18: c. Workers Compensation | F18: 270.4
C19: d. Life Insurance
C20: e. Medicare Reimbursement | F20: 20.8
C21: f. Dental Insurance
C22: g. Vision Insurance
C23: h. Liability Insurance
C24: i. Other:
C25: j. Other:
B26: 6 | C26: Sum lines 5a through line 5j and enter total. | F26: =SUM(F16:F25) -> 395.2
B27: 7 | C27: Travel Costs:
C28: a. Estimated additional mileage cost
C29: b. Estimated additional agency vehicle expense (lease, owned, rental, etc.)
C30: c. Estimated additional miscellaneous travel expenses
B31: 8 | C31: Sum lines 7a through 7c and enter total. | F31: =SUM(F28:F30) -> 0
B32: 9 | C32: Estimated additional inspection equipment.
B33: 10 | C33: Sum lines 4, 6, 8 and 9 and enter total. | F33: =SUM(F14+F26+F31+F32) -> 1643.2
B34: 11 | C34: Multiply line 10 by line 3 and enter total cost of sanitarian to the Risk component here and on the appropriate line 2 of the Cost Analysis Totals Table A Risk (M-2). | F34: =PRODUCT(F33*F10) -> 529.11
B35: 11a | C35: Multiply line 10 by line 3a and enter total cost of sanitarian to the Mobile component here and on the appropriate line 2 of the Cost Analysis Totals Table A Mobile (M-2). | F35: =PRODUCT(F33*F11) -> 19.72
B36: 11b | C36: Multiply line 10 by line 3b and enter total cost of sanitarian to the Vending component here and on the appropriate line 2 of the Cost Analysis Totals Table A Vending (M-2). | F36: =PRODUCT(F33*F12) -> 6.57
B37: 11c | C37: Multiply line 10 by line 3c and enter total cost of sanitarian to the Temporary component here and on the appropriate line 2 of the Cost Analysis Totals Table A Temporary (M-2). | F37: =PRODUCT(F33*F13) -> 3.29
B38: WORKSHEET FOR DETERMINING SUPPORT COST
B39: 12 | C39: Sum lines 4 and 6 | F39: =SUM(F14,F26) -> 1643.2
B40: 13 | C40: Multiply line 12 by the percentage of time worked in the Risk component (line 3). | F40: =F39*F10 -> 529.11
B41: 13a | C41: Multiply line 12 by the percentage of time worked in the Mobile component (line 3a). | F41: =F39*F11 -> 19.72
B42: 13b | C42: Multiply line 12 by the percentage of time worked in the Vending component (line 3b). | F42: =F39*F12 -> 6.57
B43: 13c | C43: Multiply line 12 by the percentage of time worked in the Temporary component (line 3c). | F43: =F39*F13 -> 3.29
A44: Sanitarian | C44: ='Table B (M-2)'!$C$44 -> 0
B45: 1 | C45: Total hours worked in the risk component. | F45: ='Table B (M-2)'!$F$45 -> 0
B46: 1a | C46: Total hours worked in the mobile component. | F46: ='Table B (M-2)'!$F$46 -> 0
B47: 1b | C47: Total hours worked in the vending component | F47: ='Table B (M-2)'!$F$47 -> 0
B48: 1c | C48: Total hours worked in the temporary component | F48: ='Table B (M-2)'!$F$48 -> 0
B49: 2 | C49: Total hours worked in all programs by sanitarian. | F49: ='Table B (M-2)'!$F$49 -> 0
B50: 3 | C50: Divide line 1 by line 2 and enter result. | F50: =IF(F45=0,0,F45/F49) -> 0
B51: 3a | C51: Divide line 1a by line 2 and enter result. | F51: =IF(F46=0,0,F46/F49) -> 0
B52: 3b | C52: Divide line 1b by line 2 and enter result. | F52: =IF(F47=0,0,F47/F49) -> 0
B53: 3c | C53: Divide line 1c by line 2 and enter result. | F53: =IF(F48=0,0,F48/F49) -> 0
B54: 4 | C54: Total increase in annual wages or salary paid.
B55: 5 | C55: Amount of increase for each fringe benefit:
C56: a. Health Insurance
C57: b. PERS Pickup
C58: c. Workers Compensation
C59: d. Life Insurance
C60: e. Medicare Reimbursement
C61: f. Dental Insurance
C62: g. Vision Insurance
C63: h. Liability Insurance
C64: i. Other:
C65: j. Other:
B66: 6 | C66: Sum lines 5a through line 5j and enter total. | F66: =SUM(F56:F65) -> 0
B67: 7 | C67: Travel Costs:
C68: a. Estimated additional mileage cost
C69: b. Estimated additional agency vehicle expense (lease, owned, rental, etc.)
C70: c. Estimated additional miscellaneous travel expenses
B71: 8 | C71: Sum lines 7a through 7c and enter total. | F71: =SUM(F68:F70) -> 0
B72: 9 | C72: Estimated additional inspection equipment.
B73: 10 | C73: Sum lines 4, 6, 8 and 9 and enter total. | F73: =SUM(F54+F66+F71+F72) -> 0
B74: 11 | C74: Multiply line 10 by line 3 and enter total cost of sanitarian to the Risk component here and on the appropriate line 2 of the Cost Analysis Totals Table A Risk (M-2). | F74: =PRODUCT(F73*F50) -> 0
B75: 11a | C75: Multiply line 10 by line 3a and enter total cost of sanitarian to the Mobile component here and on the appropriate line 2 of the Cost Analysis Totals Table A Mobile (M-2). | F75: =PRODUCT(F73*F51) -> 0
B76: 11b | C76: Multiply line 10 by line 3b and enter total cost of sanitarian to the Vending component here and on the appropriate line 2 of the Cost Analysis Totals Table A Vending (M-2). | F76: =PRODUCT(F73*F52) -> 0
B77: 11c | C77: Multiply line 10 by line 3c and enter total cost of sanitarian to the Temporary component here and on the appropriate line 2 of the Cost Analysis Totals Table A Temporary (M-2). | F77: =PRODUCT(F73*F53) -> 0
B78: WORKSHEET FOR DETERMINING SUPPORT COST
B79: 12 | C79: Sum lines 4 and 6 | F79: =SUM(F54,F66) -> 0
B80: 13 | C80: Multiply line 12 by the percentage of time worked in the Risk component (line 3). | F80: =F79*F50 -> 0
B81: 13a | C81: Multiply line 12 by the percentage of time worked in the Mobile component (line 3a). | F81: =F79*F51 -> 0
B82: 13b | C82: Multiply line 12 by the percentage of time worked in the Vending component (line 3b). | F82: =F79*F52 -> 0
B83: 13c | C83: Multiply line 12 by the percentage of time worked in the Temporary component (line 3c). | F83: =F79*F53 -> 0
A84: Sanitarian | C84: ='Table B (M-2)'!$C$84 -> 0
B85: 1 | C85: Total hours worked in the risk component. | F85: ='Table B (M-2)'!$F$85 -> 0
B86: 1a | C86: Total hours worked in the mobile component. | F86: ='Table B (M-2)'!$F$86 -> 0
B87: 1b | C87: Total hours worked in the vending component | F87: ='Table B (M-2)'!$F$87 -> 0
B88: 1c | C88: Total hours worked in the temporary component | F88: ='Table B (M-2)'!$F$88 -> 0
B89: 2 | C89: Total hours worked in all programs by sanitarian. | F89: ='Table B (M-2)'!$F$89 -> 0
B90: 3 | C90: Divide line 1 by line 2 and enter result. | F90: =IF(F85=0,0,F85/F89) -> 0
B91: 3a | C91: Divide line 1a by line 2 and enter result. | F91: =IF(F86=0,0,F86/F89) -> 0
B92: 3b | C92: Divide line 1b by line 2 and enter result. | F92: =IF(F87=0,0,F87/F89) -> 0
B93: 3c | C93: Divide line 1c by line 2 and enter result. | F93: =IF(F88=0,0,F88/F89) -> 0
B94: 4 | C94: Total increase in annual wages or salary paid.
B95: 5 | C95: Amount of increase for each fringe benefit:
C96: a. Health Insurance
C97: b. PERS Pickup
C98: c. Workers Compensation
C99: d. Life Insurance
C100: e. Medicare Reimbursement
C101: f. Dental Insurance
C102: g. Vision Insurance
C103: h. Liability Insurance
C104: i. Other:
C105: j. Other:
B106: 6 | C106: Sum lines 5a through line 5j and enter total. | F106: =SUM(F96:F105) -> 0
B107: 7 | C107: Travel Costs:
C108: a. Estimated additional mileage cost
C109: b. Estimated additional agency vehicle expense (lease, owned, rental, etc.)
C110: c. Estimated additional miscellaneous travel expenses
B111: 8 | C111: Sum lines 7a through 7c and enter total. | F111: =SUM(F108:F110) -> 0
B112: 9 | C112: Estimated additional inspection equipment.
B113: 10 | C113: Sum lines 4, 6, 8 and 9 and enter total. | F113: =SUM(F94+F106+F111+F112) -> 0
B114: 11 | C114: Multiply line 10 by line 3 and enter total cost of sanitarian to the Risk component here and on the appropriate line 2 of the Cost Analysis Totals Table A Risk (M-2). | F114: =PRODUCT(F113*F90) -> 0
B115: 11a | C115: Multiply line 10 by line 3a and enter total cost of sanitarian to the Mobile component here and on the appropriate line 2 of the Cost Analysis Totals Table A Mobile (M-2). | F115: =PRODUCT(F113*F91) -> 0
B116: 11b | C116: Multiply line 10 by line 3b and enter total cost of sanitarian to the Vending component here and on the appropriate line 2 of the Cost Analysis Totals Table A Vending (M-2). | F116: =PRODUCT(F113*F92) -> 0
B117: 11c | C117: Multiply line 10 by line 3c and enter total cost of sanitarian to the Temporary component here and on the appropriate line 2 of the Cost Analysis Totals Table A Temporary (M-2). | F117: =PRODUCT(F113*F93) -> 0
B118: WORKSHEET FOR DETERMINING SUPPORT COST
B119: 12 | C119: Sum lines 4 and 6 | F119: =SUM(F94,F106) -> 0
B120: 13 | C120: Multiply line 12 by the percentage of time worked in the Risk component (line 3). | F120: =F119*F90 -> 0
B121: 13a | C121: Multiply line 12 by the percentage of time worked in the Mobile component (line 3a). | F121: =F119*F91 -> 0
B122: 13b | C122: Multiply line 12 by the percentage of time worked in the Vending component (line 3b). | F122: =F119*F92 -> 0
B123: 13c | C123: Multiply line 12 by the percentage of time worked in the Temporary component (line 3c). | F123: =F119*F93 -> 0
A124: Sanitarian | C124: ='Table B (M-2)'!$C$124 -> 0
B125: 1 | C125: Total hours worked in the risk component. | F125: ='Table B (M-2)'!$F$125 -> 0
B126: 1a | C126: Total hours worked in the mobile component. | F126: ='Table B (M-2)'!$F$126 -> 0
B127: 1b | C127: Total hours worked in the vending component | F127: ='Table B (M-2)'!$F$127 -> 0
B128: 1c | C128: Total hours worked in the temporary component | F128: ='Table B (M-2)'!$F$128 -> 0
B129: 2 | C129: Total hours worked in all programs by sanitarian. | F129: ='Table B (M-2)'!$F$129 -> 0
B130: 3 | C130: Divide line 1 by line 2 and enter result. | F130: =IF(F125=0,0,F125/F129) -> 0
B131: 3a | C131: Divide line 1a by line 2 and enter result. | F131: =IF(F126=0,0,F126/F129) -> 0
B132: 3b | C132: Divide line 1b by line 2 and enter result. | F132: =IF(F127=0,0,F127/F129) -> 0
B133: 3c | C133: Divide line 1c by line 2 and enter result. | F133: =IF(F128=0,0,F128/F129) -> 0
B134: 4 | C134: Total increase in annual wages or salary paid.
B135: 5 | C135: Amount of increase for each fringe benefit:
C136: a. Health Insurance
C137: b. PERS Pickup
C138: c. Workers Compensation
C139: d. Life Insurance
C140: e. Medicare Reimbursement
C141: f. Dental Insurance
C142: g. Vision Insurance
C143: h. Liability Insurance
C144: i. Other:
C145: j. Other:
B146: 6 | C146: Sum lines 5a through line 5j and enter total. | F146: =SUM(F136:F145) -> 0
B147: 7 | C147: Travel Costs:
C148: a. Estimated additional mileage cost
C149: b. Estimated additional agency vehicle expense (lease, owned, rental, etc.)
C150: c. Estimated additional miscellaneous travel expenses
B151: 8 | C151: Sum lines 7a through 7c and enter total. | F151: =SUM(F148:F150) -> 0
B152: 9 | C152: Estimated additional inspection equipment.
B153: 10 | C153: Sum lines 4, 6, 8 and 9 and enter total. | F153: =SUM(F134+F146+F151+F152) -> 0
B154: 11 | C154: Multiply line 10 by line 3 and enter total cost of sanitarian to the Risk component here and on the appropriate line 2 of the Cost Analysis Totals Table A Risk (M-2). | F154: =PRODUCT(F153*F130) -> 0
B155: 11a | C155: Multiply line 10 by line 3a and enter total cost of sanitarian to the Mobile component here and on the appropriate line 2 of the Cost Analysis Totals Table A Mobile (M-2). | F155: =PRODUCT(F153*F131) -> 0
B156: 11b | C156: Multiply line 10 by line 3b and enter total cost of sanitarian to the Vending component here and on the appropriate line 2 of the Cost Analysis Totals Table A Vending (M-2). | F156: =PRODUCT(F153*F132) -> 0
B157: 11c | C157: Multiply line 10 by line 3c and enter total cost of sanitarian to the Temporary component here and on the appropriate line 2 of the Cost Analysis Totals Table A Temporary (M-2). | F157: =PRODUCT(F153*F133) -> 0
B158: WORKSHEET FOR DETERMINING SUPPORT COST
B159: 12 | C159: Sum lines 4 and 6 | F159: =SUM(F134,F146) -> 0
B160: 13 | C160: Multiply line 12 by the percentage of time worked in the Risk component (line 3). | F160: =F159*F130 -> 0
B161: 13a | C161: Multiply line 12 by the percentage of time worked in the Mobile component (line 3a). | F161: =F159*F131 -> 0
B162: 13b | C162: Multiply line 12 by the percentage of time worked in the Vending component (line 3b). | F162: =F159*F132 -> 0
B163: 13c | C163: Multiply line 12 by the percentage of time worked in the Temporary component (line 3c). | F163: =F159*F133 -> 0
A164: Sanitarian | C164: ='Table B (M-2)'!$C$164 -> 0
B165: 1 | C165: Total hours worked in the risk component. | F165: ='Table B (M-2)'!$F$165 -> 0
B166: 1a | C166: Total hours worked in the mobile component. | F166: ='Table B (M-2)'!$F$166 -> 0
B167: 1b | C167: Total hours worked in the vending component | F167: ='Table B (M-2)'!$F$167 -> 0
B168: 1c | C168: Total hours worked in the temporary component | F168: ='Table B (M-2)'!$F$168 -> 0
B169: 2 | C169: Total hours worked in all programs by sanitarian. | F169: ='Table B (M-2)'!$F$169 -> 0
B170: 3 | C170: Divide line 1 by line 2 and enter result. | F170: =IF(F165=0,0,F165/F169) -> 0
B171: 3a | C171: Divide line 1a by line 2 and enter result. | F171: =IF(F166=0,0,F166/F169) -> 0
B172: 3b | C172: Divide line 1b by line 2 and enter result. | F172: =IF(F167=0,0,F167/F169) -> 0
B173: 3c | C173: Divide line 1c by line 2 and enter result. | F173: =IF(F168=0,0,F168/F169) -> 0
B174: 4 | C174: Total increase in annual wages or salary paid.
B175: 5 | C175: Amount of increase for each fringe benefit:
C176: a. Health Insurance
C177: b. PERS Pickup
C178: c. Workers Compensation
C179: d. Life Insurance
C180: e. Medicare Reimbursement
C181: f. Dental Insurance
C182: g. Vision Insurance
C183: h. Liability Insurance
C184: i. Other:
C185: j. Other:
B186: 6 | C186: Sum lines 5a through line 5j and enter total. | F186: =SUM(F176:F185) -> 0
B187: 7 | C187: Travel Costs:
C188: a. Estimated additional mileage cost
C189: b. Estimated additional agency vehicle expense (lease, owned, rental, etc.)
C190: c. Estimated additional miscellaneous travel expenses
B191: 8 | C191: Sum lines 7a through 7c and enter total. | F191: =SUM(F188:F190) -> 0
B192: 9 | C192: Estimated additional inspection equipment.
B193: 10 | C193: Sum lines 4, 6, 8 and 9 and enter total. | F193: =SUM(F174+F186+F191+F192) -> 0
B194: 11 | C194: Multiply line 10 by line 3 and enter total cost of sanitarian to the Risk component here and on the appropriate line 2 of the Cost Analysis Totals Table A Risk (M-2). | F194: =PRODUCT(F193*F170) -> 0
B195: 11a | C195: Multiply line 10 by line 3a and enter total cost of sanitarian to the Mobile component here and on the appropriate line 2 of the Cost Analysis Totals Table A Mobile (M-2). | F195: =PRODUCT(F193*F171) -> 0
B196: 11b | C196: Multiply line 10 by line 3b and enter total cost of sanitarian to the Vending component here and on the appropriate line 2 of the Cost Analysis Totals Table A Vending (M-2). | F196: =PRODUCT(F193*F172) -> 0
B197: 11c | C197: Multiply line 10 by line 3c and enter total cost of sanitarian to the Temporary component here and on the appropriate line 2 of the Cost Analysis Totals Table A Temporary (M-2). | F197: =PRODUCT(F193*F173) -> 0
B198: WORKSHEET FOR DETERMINING SUPPORT COST
B199: 12 | C199: Sum lines 4 and 6 | F199: =SUM(F174,F186) -> 0
B200: 13 | C200: Multiply line 12 by the percentage of time worked in the Risk component (line 3). | F200: =F199*F170 -> 0
B201: 13a | C201: Multiply line 12 by the percentage of time worked in the Mobile component (line 3a). | F201: =F199*F171 -> 0
... 1010 more rows

Sheet Table F (M-2)
A1: ='Certification (M-2)'!$A$17 -> 2012 | C1: ANTICIPATED COSTS TABLE F (M-2)
A3: Department | C3: ='Certification (M-2)'!$B$2 -> Galion City Health Department
A4: RISK PROGRAM COMPONENT
B5: 1a. | C5: Enter amount of anticipated additional cost from all of the lines 11 of Sanitarian Cost Anticipated Table B-A (M-2). | F5: ='Table B-A (M-2)'!F1204 -> 529.11
B6: 1b. | C6: Known additional support costs: Sum all of the lines 13 of all Sanitarian Cost Anticipated Table B-A (M-2) and enter amount. | F6: ='Table B-A (M-2)'!F1208 -> 529.11
B7: 1c. | C7: Multiply the amount on line 1b by 30% and enter amount. | F7: =F6*0.3 -> 158.73
B8: 1d. | C8: Sum lines 1a and 1c, and enter total here and on line 5 of Cost Analysis Totals Table A Risk (M-2). | F8: =SUM(F5+F7) -> 687.84
A9: MOBILE PROGRAM COMPONENT
B10: 2a. | C10: Enter amount of anticipated additional cost from all of the lines 11a of Sanitarian Cost Anticipated Table B-A (M-2). | F10: ='Table B-A (M-2)'!F1205 -> 19.72
B11: 2b. | C11: Known additional support costs: Sum all of the lines 13a of all Sanitarian Cost Anticipated Table B-A (M-2) and enter amount. | F11: ='Table B-A (M-2)'!F1209 -> 19.72
B12: 2c. | C12: Multiply the amount on line 2b by 30% and enter amount. | F12: =F11*0.3 -> 5.92
B13: 2d. | C13: Sum lines 2a and 2c, and enter total here and on line 5 of Cost Analysis Totals Table A Mobile (M-2). | F13: =SUM(F10+F12) -> 25.64
A14: VENDING PROGRAM COMPONENT
B15: 3a. | C15: Enter amount of anticipated additional cost from all of the lines 11b of Sanitarian Cost Anticipated Table B-A (M-2). | F15: ='Table B-A (M-2)'!F1206 -> 6.57
B16: 3b. | C16: Known additional support costs: Sum all of the lines 13b of all Sanitarian Cost Anticipated Table B-A (M-2) and enter amount. | F16: ='Table B-A (M-2)'!F1210 -> 6.57
B17: 3c. | C17: Multiply the amount on line 3b by 30% and enter amount. | F17: =F16*0.3 -> 1.97
B18: 3d. | C18: Sum lines 3a and 3c, and enter total here and on line 5 of Cost Analysis Totals Table A Vending (M-2). | F18: =SUM(F15+F17) -> 8.54
A19: TEMPORARY PROGRAM COMPONENT
B20: 4a. | C20: Enter amount of anticipated additional cost from line 11c of Sanitarian Cost Anticipated Table B-A (M-2). | F20: ='Table B-A (M-2)'!F1207 -> 3.29
B21: 4b. | C21: Known additional support costs: Sum all of the lines 13c of all Sanitarian Cost Anticipated Table B-A (M-2) and enter amount. | F21: ='Table B-A (M-2)'!F1211 -> 3.29
B22: 4c. | C22: Multiply the amount on line 4b by 30% and enter amount. | F22: =F21*0.3 -> 0.99
B23: 4d. | C23: Sum lines 4a and 4c, and enter total here and on line 5 of Cost Analysis Totals Table A Temporary (M-2). | F23: =SUM(F20+F22) -> 4.28

Sheet Table G (M-2)
A1: ='Certification (M-2)'!$A$17 -> 2012 | C1: PROGRAM REVENUE TABLE G (M-2)
A3: Department | C3: ='Certification (M-2)'!$B$2 -> Galion City Health Department
A4: License fees collected for Risk Classified Facilities.
B5: Commercial:
B6: 1. | C6: Level 1, less than 25,000 sq. ft. | F6: 1160.74
B7: 2. | C7: Level 2, less than 25,000 sq. ft. | F7: 1495.04
B8: 3. | C8: Level 3, less than 25,000 sq. ft. | F8: 15032.22
B9: 4. | C9: Level 4, less than 25,000 sq. ft. | F9: 12256.92
B10: 5. | C10: Level 1, 25,000 sq. ft. and over | F10: 0
B11: 6. | C11: Level 2, 25,000 sq. ft. and over | F11: 0
B12: 7. | C12: Level 3, 25,000 sq. ft. and over | F12: 0
B13: 8. | C13: Level 4, 25,000 sq. ft. and over | F13: 0
B14: Noncommercial (if applicable):
A15: 0 | B15: 9. | C15: Level 1, less than 25,000 sq. ft.
A16: 0 | B16: 10. | C16: Level 2, less than 25,000 sq. ft.
A17: 0 | B17: 11. | C17: Level 3, less than 25,000 sq. ft.
A18: 0 | B18: 12. | C18: Level 4, less than 25,000 sq. ft.
A19: 0 | B19: 13. | C19: Level 1, 25,000 sq. ft. and over
A20: 0 | B20: 14. | C20: Level 2, 25,000 sq. ft. and over
A21: 0 | B21: 15. | C21: Level 3, 25,000 sq. ft. and over
B22: 16. | C22: Level 4, 25,000 sq. ft. and over
A23: RISK FACILITIES
B24: 17. | C24: Sum lines 1 through 16 and enter amount. | F24: =SUM(F6,F7,F8,F9,F10,F11,F12,F13,F15,F16,F17,F18,F19,F20,F21,F22) -> 29944.92
B25: 18. | C25: If applicable, enter the amount your department supplements this component of the Food Safety Program.
B26: 19. | C26: Sum lines 17 and 18 and enter amount. This total represents the total program revenue for the risk classified facilities. | F26: =SUM(F24+F25) -> 29944.92
B27: 20. | C27: Enter amount from line 8 of Cost Analysis Totals Table A Risk (M-2). | F27: ='Table A Risk (M-2)'!F48 -> 33156.5
B28: 21. | C28: Subtract line 20 from line 19 and enter amount. If the amount on this line is less than 0, this indicates that you are operating at a deficit. | F28: =F26-F27 -> -3211.58
A29: MOBILE FACILITIES
B30: 22. | C30: Enter mobile facilities license fees collected. | F30: 1035.3
B31: 23. | C31: If applicable, enter the amount your department supplements this component of the Food Safety Program.
B32: 24. | C32: Sum lines 22 and 23 and enter amount. This total represents the total program revenue for mobile facilities. | F32: =SUM(F30:F31) -> 1035.3
B33: 25. | C33: Enter amount from line 8 of Cost Analysis Totals Table A Mobile (M-2). | F33: ='Table A Mobile (M-2)'!F48 -> 1235.65
B34: 26. | C34: Subtract line 25 from line 24 and enter the amount. If the amount on this line is less than 0, this indicates that you are operating at a deficit. | F34: =F32-F33 -> -200.35
A35: VENDING FACILITIES
B36: 27. | C36: Enter vending license fees collected. | F36: 409.56
B37: 28. | C37: If applicable, enter the amount your department supplements this component of the Food Safety Program.
B38: 29. | C38: Sum lines 27 and 28 and enter amount. This total represents the total program revenue for vending facilities. | F38: =F36+F37 -> 409.56
B39: 30. | C39: Enter amount from line 8 of the Cost Analysis Totals Table A Vending (M-2). | F39: ='Table A Vending (M-2)'!F48 -> 411.88
B40: 31. | C40: Subtract line 30 from line 29 and enter amount. If the amount on this line is less than 0, this indicates that you are operating at a deficit. | F40: =F38-F39 -> -2.32
A41: TEMPORARY FACILITIES
B42: 32. | C42: Enter temporary license fees collected. | F42: 82
B43: 33. | C43: If applicable, enter the amount your department supplements this component of the Food Safety Program.
B44: 34. | C44: Sum lines 32 and 33 and enter amount. This total represents the total program revenue for temporary facilities. | F44: =F42+F43 -> 82
B45: 35. | C45: Enter amount from line 8 of Cost Analysis Totals Table A Temporary (M-2). | F45: ='Table A Temporary (M-2)'!F48 -> 205.95
B46: 36. | C46: Subtract line 35 from line 34 and enter the amount. If the amount on this line is less than 0, this indicates that you are operating at a deficit. | F46: =F44-F45 -> -123.95

Sheet Table H (M-2)
A1: ='Certification (M-2)'!$A$17 -> 2012 | C1: LICENSE FEE CALCULATION TABLE H (M-2)
A3: Department | C3: ='Certification (M-2)'!$B$2 -> Galion City Health Department
A4: Licenses Issued in Each Category:
B5: Commercial: less than 25,000 sq. ft.
B6: 1. | C6: Level 1 | F6: 7
B7: 2. | C7: Level 2 | F7: 8
B8: 3. | C8: Level 3 | F8: 37
B9: 4. | C9: Level 4 | F9: 27
B10: Commercial: 25,000 sq. ft. or more
B11: 5. | C11: Level 1 | F11: 0
B12: 6. | C12: Level 2 | F12: 0
B13: 7. | C13: Level 3 | F13: 0
B14: 8. | C14: Level 4 | F14: 0
B15: Noncommercial: less than 25,000 sq. ft. (If LHD chooses to not have a noncommercial fee, enter "0" for each.)
B16: 9. | C16: Level 1
B17: 10. | C17: Level 2
B18: 11. | C18: Level 3
B19: 12. | C19: Level 4
B20: 13. | C20: Multiply line 9 by 0.5 and enter the amount. | F20: =PRODUCT(F16*0.5) -> 0
B21: 14. | C21: Multiply line 10 by 0.5 and enter the amount. | F21: =PRODUCT(F17*0.5) -> 0
B22: 15. | C22: Multiply line 11 by 0.5 and enter the amount. | F22: =PRODUCT(F18*0.5) -> 0
B23: 16. | C23: Multiply line 12 by 0.5 and enter the amount. | F23: =PRODUCT(F19*0.5) -> 0
B24: Noncommercial: 25,000 sq. ft. or more. (If LHD chooses to not have a noncommercial fee, enter "0" for each.)
B25: 17. | C25: Level 1
B26: 18. | C26: Level 2
B27: 19. | C27: Level 3
B28: 20. | C28: Level 4
B29: 21. | C29: Multiply line 17 by 0.5 and enter the amount. | F29: =PRODUCT(F25*0.5) -> 0
B30: 22. | C30: Multiply line 18 by 0.5 and enter the amount. | F30: =PRODUCT(F26*0.5) -> 0
B31: 23. | C31: Multiply line 19 by 0.5 and enter the amount. | F31: =PRODUCT(F27*0.5) -> 0
B32: 24. | C32: Multiply line 20 by 0.5 and enter the amount. | F32: =PRODUCT(F28*0.5) -> 0
B33: 25. | C33: Sum lines 1 to 8, 13 to 16, 21 to 24 and enter total. | F33: =((SUM(F6:F9))+(SUM(F11:F14))+(SUM(F20:F23))+(SUM(F29:F32))) -> 79
A34: Calculated inspection period:
B35: 26. | C35: Multiply line 1 by (1) and by (1) and enter the amount. | F35: =PRODUCT(F6*1*1) -> 7
B36: 27. | C36: Multiply line 2 by (1) and by (1.25) and enter the amount. | F36: =PRODUCT(F7*1*1.25) -> 10
B37: 28. | C37: Multiply line 3 by (2) and by (1.64) and enter the amount. | F37: =PRODUCT(F8*2*1.64) -> 121.36
B38: 29. | C38: Multiply line 4 by (2) and by (2.21) and enter the amount. | F38: =PRODUCT(F9*2*2.21) -> 119.34
B39: 30. | C39: Multiply line 5 by (1) and by (1.88) and enter the amount. | F39: =PRODUCT(F11*1*1.88) -> 0
B40: 31. | C40: Multiply line 6 by (1) and by (2.03) and enter the amount. | F40: =PRODUCT(F12*1*2.03) -> 0
B41: 32. | C41: Multiply line 7 by (2) and by (4.84) and enter the amount. | F41: =PRODUCT(F13*2*4.84) -> 0
B42: 33. | C42: Multiply line 8 by (2) and by (5.16) and enter the amount. | F42: =PRODUCT(F14*2*5.16) -> 0
B43: 34. | C43: Multiply line 13 by (1) and by (1) and enter the amount. | F43: =PRODUCT(F20*1*1) -> 0
B44: 35. | C44: Multiply line 14 by (1) and by (1.25) and enter the amount. | F44: =PRODUCT(F21*1*1.25) -> 0
B45: 36. | C45: Multiply line 15 by (2) and by (1.64) and enter the amount. | F45: =PRODUCT(F22*2*1.64) -> 0
B46: 37. | C46: Multiply line 16 by (2) and by (2.21) and enter the amount. | F46: =PRODUCT(F23*2*2.21) -> 0
B47: 38. | C47: Multiply line 21 by (1) and by (1.88) and enter the amount. | F47: =PRODUCT(F29*1*1.88) -> 0
B48: 39. | C48: Multiply line 22 by (1) and by (2.03) and enter the amount. | F48: =PRODUCT(F30*1*2.03) -> 0
B49: 40. | C49: Multiply line 23 by (2) and by (4.84) and enter the amount. | F49: =PRODUCT(F31*2*4.84) -> 0
B50: 41. | C50: Multiply line 24 by (2) and by (5.16) and enter the amount. | F50: =PRODUCT(F32*2*5.16) -> 0
B51: 42. | C51: Sum lines 26 through 41 and enter total. | F51: =SUM(F35:F50) -> 257.7
A52: Cost per calculated inspection period:
B53: 43. | C53: Enter program component cost from line 8 of the Cost Analysis Totals Table A Risk (M-2). | F53: ='Table A Risk (M-2)'!F50 -> 32239.51
B54: 44. | C54: Enter program support cost from line 1 of the Cost Analysis Totals Table A Risk (M-2). | F54: ='Table A Risk (M-2)'!F9 -> 7454.12
B55: 45. | C55: Subtract line 44 from line 43 and enter the amount. | F55: =F53-F54 -> 24785.39
B56: 46. | C56: Divide line 45 by line 42 and enter amount. | F56: =F55/F51 -> 96.18
A57: Support cost per facility:
B58: 47. | C58: Divide line 44 by line 25 and enter amount. | F58: =F54/F33 -> 94.36
A59: Calculated inspection period amount:
B60: 48. | C60: Multiply line 46 by (1) and by (1) and enter the amount. | F60: =PRODUCT(F56*1*1) -> 96.18
B61: 49. | C61: Multiply line 46 by (1) and by (1.25) and enter the amount. | F61: =PRODUCT(F56*1*1.25) -> 120.23
B62: 50. | C62: Multiply line 46 by (2) and by (1.64) and enter the amount. | F62: =PRODUCT(F56*2*1.64) -> 315.47
B63: 51. | C63: Multiply line 46 by (2) and by (2.21) and enter the amount. | F63: =PRODUCT(F56*2*2.21) -> 425.12
B64: 52. | C64: Multiply line 46 by (1) and by (1.88) and enter the amount. | F64: =PRODUCT(F56*1*1.88) -> 180.82
B65: 53. | C65: Multiply line 46 by (1) and by (2.03) and enter the amount. | F65: =PRODUCT(F56*1*2.03) -> 195.25
B66: 54. | C66: Multiply line 46 by (2) and by (4.84) and enter the amount. | F66: =PRODUCT(F56*2*4.84) -> 931.02
B67: 55. | C67: Multiply line 46 by (2) and by (5.16) and enter the amount. | F67: =PRODUCT(F56*2*5.16) -> 992.58
A68: RISK CLASSIFIED LICENSE FEES
B69: 56. | C69: Add the amount on line 47 to the amount on line 48 and enter this total. This equals the maximum license fee that may be adopted for the Level 1, less than 25,000 sq. ft. category. | F69: =SUM(F58+F60) -> 190.54
B70: 57. | C70: Add the amount on line 47 to the amount on line 49 and enter this total. This equals the maximum license fee that may be adopted for the Level 2, less than 25,000 sq. ft. category. | F70: =SUM(F58+F61) -> 214.59
B71: 58. | C71: Add the amount on line 47 to the amount on line 50 and enter this total. This equals the maximum license fee that may be adopted for the Level 3, less than 25,000 sq. ft. category. | F71: =SUM(F58+F62) -> 409.83
B72: 59. | C72: Add the amount on line 47 to the amount on line 51 and enter this total. This equals the maximum license fee that may be adopted for the Level 4, less than 25,000 sq. ft. category. | F72: =SUM(F58+F63) -> 519.48
B73: 60. | C73: Add the amount on line 47 to the amount on line 52 and enter this total. This equals the maximum license fee that may be adopted for the Level 1, 25,000 sq. ft. and over category. | F73: =SUM(F58+F64) -> 275.18
B74: 61. | C74: Add the amount on line 47 to the amount on line 53 and enter this total. This equals the maximum license fee that may be adopted for the Level 2, 25,000 sq. ft. and over category. | F74: =SUM(F58+F65) -> 289.61
B75: 62. | C75: Add the amount on line 47 to the amount on line 54 and enter this total. This equals the maximum license fee that may be adopted for the Level 3, 25,000 sq. ft. and over category. | F75: =SUM(F58+F66) -> 1025.38
B76: 63. | C76: Add the amount on line 47 to the amount on line 55 and enter this total. This equals the maximum license fee that may be adopted for the Level 4, 25,000 sq. ft. and over category. | F76: =SUM(F58+F67) -> 1086.94
A77: Mobile Facility License Fee Calculation
B78: 64. | C78: Total number of mobile facilities. | F78: 21
B79: 65. | C79: Enter total cost for this program component from line 8 of the Cost Analysis Totals Table A Mobile (M-2). | F79: ='Table A Mobile (M-2)'!F50 -> 1204.99
B80: 66. | C80: Divide line 65 by line 64 and enter amount. This represents the maximum amount that the licensor may adopt as a mobile facility license fee. | F80: =F79/F78 -> 57.38
A81: *VENDING LICENSE FEE CALCULATION
B82: 67. | C82: Total number of licensed vending operations. | F82: 12
B83: 68. | C83: Enter total cost for this program component from line 8 of the Cost Analysis Totals form Table A Vending (M-2). | F83: ='Table A Vending (M-2)'!F50 -> 423.03
B84: 69. | C84: Divide line 68 by line 67 and enter amount. This represents the maximum amount* that the licensor may adopt as a vending license fee. | F84: =F83/F82 -> 35.25
B85: *License fee shall not be increased by more than the percentage of increase in the Consumer Price Index.
A86: TEMPORARY FACILITY LICENSE FEE CALCULATION (DAY)
B87: 70. | C87: Number of days for which temporary licenses were issued last year.
B88: 71. | C88: Number of days for which noncommercial temporary licenses were issued last year.
B89: 72. | C89: Multiply line 71 by 0.5 and enter amount. | F89: =F88*0.5 -> 0
B90: 73. | C90: Sum of lines 70 and 72. | F90: =F87+F89 -> 0
B91: 74. | C91: Enter total cost for this program component from line 8 of the Cost Analysis Totals form Table A Temporary (M-2). | F91: ='Table A Temporary (M-2)'!F50 -> 205.95
B92: 75. | C92: Divide line 74 by line 73 and enter amount. This represents the maximum amount that the licensor may adopt as a temporary facility license fee per day of operation. | F92: =F91/F90 -> 
A93: OR
A94: TEMPORARY FACILITY LICENSE FEE CALCULATION (EVENT)
B95: 76. | C95: Number of temporary licenses issued per year. | F95: 1
B96: 77. | C96: Number of noncommercial temporary licenses issued per year.
B97: 78. | C97: Multiply line 77 by 0.5 and enter amount. | F97: =F96*0.5 -> 0
B98: 79. | C98: Sum of lines 76 and 78. | F98: =F95+F97 -> 1
B99: 80. | C99: Enter total cost for this program component from line 8 of the Cost Analysis Totals form Table A Temporary (M-2). | F99: ='Table A Temporary (M-2)'!F50 -> 205.95
B100: 81. | C100: Divide line 80 by line 79 and enter amount. This represents the maximum amount that the licensor may adopt as a temporary facility license fee per event. | F100: =F99/F98 -> 205.95

Sheet Anticipate Worksheet (M-2)
A1: ='Certification (M-2)'!$A$17 -> 2012 | B1: ANTICIPATED WORKSHEET (M-2)
A2: Department | B2: ='Certification (M-2)'!$B$2 -> Galion City Health Department
A3: RISK PROGRAM COMPONENT
A4: 32159.11 | B4: 1. | C4: Previous year sanitarian cost taken from line 3 of Table A Risk (M-2)
A5: 916.99 | B5: 2. | C5: Previous year anticipated sanitarian cost taken from line 1a Table F Risk (M-2)
A6: =A4+A5 -> 33076.1 | B6: 3. | C6: Sum lines 1 and 2. This is the total sanitarian cost from the previous year
A7: ='Table A Risk (M-2)'!$F$42 -> 25014.54 | B7: 4. | C7: Current sanitarian cost from line 3 of Table A Risk (M-2)
A8: =IF(A7-A6>=0,"0",IF(ABS(A7-A6)>=A5,A5,IF(ABS(A7-A6)<A5,(A7-A6)))) -> 916.99 | B8: 5. | C8: This is the amount of anticpated sanitarian cost of the risk compnonet that was not incurred from the previous year.
A9: MOBILE PROGRAM COMPONENT
A10: 937.71 | B10: 6. | C10: Previous year sanitarian cost taken from line 3 of Table A Mobile (M-2)
A11: 30.66 | B11: 7. | C11: Previous year anticipated sanitarian cost taken from line 2a Table F Mobile (M-2)
A12: =A10+A11 -> 968.37 | B12: 8. | C12: Sum lines 6 and 7. This is the total sanitarian cost from previous year
A13: ='Table A Mobile (M-2)'!F42 -> 932.22 | B13: 9. | C13: Current sanitarian cost from line 3 of Table A Mobile (M-2)
A14: =IF(A13-A12>=0,"0",IF(ABS(A13-A12)>=A11,A11,IF(ABS(A13-A12)<A11,(A13-A12)))) -> 30.66 | B14: 10. | C14: This is the amount of anticpated sanitarian cost of the risk compnonet that was not incurred from the previous year.
A15: VENDING PROGRAM COMPONENT
A16: 340.99 | B16: 11. | C16: Previous year sanitarian cost taken from line 3 of Table A Vending (M-2)
A17: 11.15 | B17: 12. | C17: Previous year anticipated sanitarian cost taken from line 1a Table F Vending M-2)
A18: =A16+A17 -> 352.14 | B18: 13. | C18: Sum lines 11 and 12. This is the total sanitarian cost from previous year
A19: ='Table A Vending (M-2)'!F42 -> 310.74 | B19: 14. | C19: Current sanitarian cost from line 3 of Table A Vending (M-2)
A20: =IF(A19-A18>=0,"0",IF(ABS(A19-A18)>=A17,A17,IF(ABS(A19-A18)<A17,(A19-A18)))) -> 11.15 | B20: 15. | C20: This is the amount of anticpated sanitarian cost of the risk compnonet that was not incurred from the previous year.
A21: TEMPORARY PROGRAM COMPONENT
A22: 85.25 | B22: 16. | C22: Previous year sanitarian cost
A23: 2.79 | B23: 17. | C23: Previous year anticipated sanitarian cost
A24: =A22+A23 -> 88.04 | B24: 18. | C24: Sum lines 16 and 17. This is the total sanitarian cost from previous year
A25: ='Table A Temporary (M-2)'!F42 -> 155.37 | B25: 19. | C25: Current sanitarian cost from line 3 of Table A Temporary (M-2)
A26: =IF(A25-A24>=0,"0",IF(ABS(A25-A24)>=A23,A23,IF(ABS(A25-A24)<A23,(A25-A24)))) -> 0 | B26: 20. | C26: This is the amount of anticpated sanitarian cost of the risk compnonet that was not incurred from the previous year.
